[Event "FIDE World Rapid Chess Championship 2021"]
[White "Gabuzyan, Hovhannes"]
[Black "Wieczorek, Oskar"]
[WhiteFideId "13303732"]
[BlackFideId "1133950"]
[WhiteElo "2535"]
[BlackElo "2367"]
[Result "1-0"]
[Round "06"]
[TimeControl "900+10"]
[Date "2021.12.27"]
[WhiteClock "0:10:18"]
[BlackClock "0:01:43"]

1. c4 {[%clk 0:15:00]}  g6 {[%clk 0:15:00]} 2. Nc3 {[%clk 0:15:16]}  Bg7 {[%clk 0:15:00]} 3. g3 {[%clk 0:15:16]}  e5 {[%clk 0:15:00]} 4. Bg2 {[%clk 0:15:16]}  d6 {[%clk 0:15:00]} 5. d3 {[%clk 0:15:16]}  f5 {[%clk 0:15:00]} 6. e3 {[%clk 0:15:16]}  Nf6 {[%clk 0:15:00]} 7. Nge2 {[%clk 0:15:16]}  O-O {[%clk 0:15:00]} 8. O-O {[%clk 0:15:16]}  a5 {[%clk 0:15:00]} 9. b3 {[%clk 0:16:16]}  c6 {[%clk 0:15:12]} 10. e4 {[%clk 0:16:08]}  Na6 {[%clk 0:15:12]} 11. h3 {[%clk 0:16:08]}  f4 {[%clk 0:13:14]} 12. gxf4 {[%clk 0:14:32]}  Nh5 {[%clk 0:13:14]} 13. f5 {[%clk 0:14:36]}  gxf5 {[%clk 0:11:09]} 14. Ng3 {[%clk 0:14:36]}  Nf4 {[%clk 0:11:04]} 15. exf5 {[%clk 0:13:17]}  Nc5 {[%clk 0:10:11]} 16. d4 {[%clk 0:13:25]}  Nxg2 {[%clk 0:05:24]} 17. dxc5 {[%clk 0:13:25]}  Nf4 {[%clk 0:05:24]} 18. Kh2 {[%clk 0:13:12]}  Bxf5 {[%clk 0:05:26]} 19. Nxf5 {[%clk 0:10:51]}  Rxf5 {[%clk 0:05:26]} 20. Qg4 {[%clk 0:10:51]}  Rg5 {[%clk 0:05:26]} 21. Qf3 {[%clk 0:10:51]}  d5 {[%clk 0:04:17]} 22. cxd5 {[%clk 0:10:59]}  cxd5 {[%clk 0:04:17]} 23. Bxf4 {[%clk 0:10:59]}  exf4 {[%clk 0:04:17]} 24. Rg1 {[%clk 0:10:59]}  h6 {[%clk 0:03:16]} 25. Rad1 {[%clk 0:10:51]}  Bxc3 {[%clk 0:02:43]} 26. Qxc3 {[%clk 0:11:00]}  Kh7 {[%clk 0:02:43]} 27. Qd3+ {[%clk 0:11:00]}  Kh8 {[%clk 0:02:43]} 28. Qd4+ {[%clk 0:10:50]}  Kh7 {[%clk 0:01:34]} 29. Rxg5 {[%clk 0:10:50]}  hxg5 {[%clk 0:01:34]} 30. Qe5 {[%clk 0:10:50]}  Qg8 {[%clk 0:01:43]} 31. Rxd5 {[%clk 0:10:18]}  Re8 {[%clk 0:01:43]} 32. Qf5+ {[%clk 0:10:18]}  Kh8 {[%clk 0:01:43]} 33. Rd7 {[%clk 0:10:18]} 1-0


[Site "http://www.Chess.com"]

[Event "FIDE World Rapid Chess Championship 2021"]
[White "Pichot, Alan"]
[Black "Kuzmicz, Krystian"]
[WhiteFideId "110973"]
[BlackFideId "1119125"]
[WhiteElo "2523"]
[BlackElo "2314"]
[Result "1-0"]
[Round "06"]
[TimeControl "900+10"]
[Date "2021.12.27"]
[WhiteClock "0:00:00"]
[BlackClock "0:00:00"]

1. e4 {[%clk 0:15:00]}  d5 {[%clk 0:15:00]} 2. exd5 {[%clk 0:15:20]}  Qxd5 {[%clk 0:15:33]} 3. Nc3 {[%clk 0:15:20]}  Qd8 {[%clk 0:15:33]} 4. d4 {[%clk 0:15:20]}  Nf6 {[%clk 0:15:33]} 5. Nf3 {[%clk 0:15:20]}  Bg4 {[%clk 0:15:33]} 6. Bf4 {[%clk 0:15:20]}  e6 {[%clk 0:15:44]} 7. h3 {[%clk 0:15:01]}  Bxf3 {[%clk 0:15:44]} 8. Qxf3 {[%clk 0:15:01]}  c6 {[%clk 0:15:44]} 9. O-O-O {[%clk 0:15:01]}  Bb4 {[%clk 0:15:44]} 10. Ne4 {[%clk 0:15:01]}  Nxe4 {[%clk 0:14:47]} 11. Qxe4 {[%clk 0:11:54]}  Qd5 {[%clk 0:14:47]} 12. Qxd5 {[%clk 0:11:54]}  cxd5 {[%clk 0:14:47]} 13. Bd3 {[%clk 0:11:54]}  Nc6 {[%clk 0:14:12]} 14. c3 {[%clk 0:12:08]}  Be7 {[%clk 0:14:12]} 15. Rhe1 {[%clk 0:12:08]}  Kd7 {[%clk 0:13:34]} 16. Re2 {[%clk 0:12:15]}  Bd6 {[%clk 0:13:34]} 17. Bd2 {[%clk 0:12:15]}  Rhc8 {[%clk 0:12:33]} 18. Kb1 {[%clk 0:12:03]}  a6 {[%clk 0:12:33]} 19. f4 {[%clk 0:12:10]}  g6 {[%clk 0:11:05]} 20. g4 {[%clk 0:12:10]}  f5 {[%clk 0:10:23]} 21. Rde1 {[%clk 0:10:22]}  Re8 {[%clk 0:10:23]} 22. b4 {[%clk 0:10:29]}  Re7 {[%clk 0:09:31]} 23. a4 {[%clk 0:10:01]}  Rf8 {[%clk 0:09:31]} 24. Rf1 {[%clk 0:10:01]}  Ref7 {[%clk 0:07:50]} 25. Ref2 {[%clk 0:09:41]}  Ne7 {[%clk 0:07:25]} 26. Ka2 {[%clk 0:07:32]}  Nc8 {[%clk 0:04:29]} 27. Kb3 {[%clk 0:07:32]}  Bc7 {[%clk 0:03:36]} 28. gxf5 {[%clk 0:07:26]}  gxf5 {[%clk 0:03:16]} 29. Rg1 {[%clk 0:05:05]}  Nd6 {[%clk 0:03:16]} 30. Rfg2 {[%clk 0:05:05]}  Ne4 {[%clk 0:03:16]} 31. Be3 {[%clk 0:05:05]}  Bd6 {[%clk 0:03:16]} 32. Rg7 {[%clk 0:05:15]}  Ke7 {[%clk 0:02:56]} 33. Be2 {[%clk 0:04:51]}  Rxg7 {[%clk 0:02:42]} 34. Rxg7+ {[%clk 0:04:51]}  Rf7 {[%clk 0:02:42]} 35. Rg1 {[%clk 0:03:07]}  Rf6 {[%clk 0:02:38]} 36. Rg7+ {[%clk 0:03:07]}  Rf7 {[%clk 0:02:01]} 37. Rxf7+ {[%clk 0:00:00]}  Kxf7 {[%clk 0:02:01]} 38. c4 {[%clk 0:00:00]}  dxc4+ {[%clk 0:01:01]} 39. Kxc4 {[%clk 0:00:00]}  Nf6 {[%clk 0:01:01]} 40. Bf3 {[%clk 0:00:00]}  Nd5 {[%clk 0:01:01]} 41. Bxd5 {[%clk 0:00:00]}  exd5+ {[%clk 0:01:01]} 42. Kxd5 {[%clk 0:00:00]}  Bxb4 {[%clk 0:01:01]} 43. Ke5 {[%clk 0:00:00]}  b5 {[%clk 0:00:53]} 44. axb5 {[%clk 0:00:00]}  axb5 {[%clk 0:00:53]} 45. Kxf5 {[%clk 0:00:00]}  Bd6 {[%clk 0:00:53]} 46. Ke4 {[%clk 0:00:00]}  b4 {[%clk 0:00:53]} 47. Kd3 {[%clk 0:00:00]}  Ke6 {[%clk 0:00:00]} 48. Kc4 {[%clk 0:00:00]}  Kf5 {[%clk 0:00:00]} 49. Bd2 {[%clk 0:00:00]}  Ke4 {[%clk 0:00:00]} 50. f5 {[%clk 0:00:00]}  b3 {[%clk 0:00:00]} 51. Bc3 {[%clk 0:00:00]}  Kxf5 {[%clk 0:00:00]} 52. Kxb3 {[%clk 0:00:00]}  Kf4 {[%clk 0:00:00]} 53. Be1 {[%clk 0:00:00]}  Kf3 {[%clk 0:00:00]} 54. Kc4 {[%clk 0:00:00]}  Ke2 {[%clk 0:00:00]} 55. Bh4 {[%clk 0:00:00]}  Kf3 {[%clk 0:00:00]} 56. Bd8 {[%clk 0:00:00]}  h5 {[%clk 0:00:00]} 57. Kd5 {[%clk 0:00:00]}  Bg3 {[%clk 0:00:00]} 58. h4 {[%clk 0:00:00]}  Ke3 {[%clk 0:00:00]} 59. Bf6 {[%clk 0:00:00]}  Kf4 {[%clk 0:00:00]} 60. Be5+ {[%clk 0:00:00]}  Kg4 {[%clk 0:00:00]} 61. Bxg3 {[%clk 0:00:00]}  Kxg3 {[%clk 0:00:00]} 62. Ke5 {[%clk 0:00:00]} 1-0


[Site "http://www.Chess.com"]

[Event "FIDE World Rapid Chess Championship 2021"]
[White "Christiansen, Johan-Sebastian"]
[Black "Kanarek, Marcel"]
[WhiteFideId "1512668"]
[BlackFideId "1126822"]
[WhiteElo "2522"]
[BlackElo "2296"]
[Result "1-0"]
[Round "06"]
[TimeControl "900+10"]
[Date "2021.12.27"]
[WhiteClock "0:04:52"]
[BlackClock "0:00:59"]

1. e4 {[%clk 0:15:00]}  c5 {[%clk 0:15:00]} 2. Nf3 {[%clk 0:15:19]}  e6 {[%clk 0:15:00]} 3. c3 {[%clk 0:15:25]}  d5 {[%clk 0:13:52]} 4. exd5 {[%clk 0:12:35]}  exd5 {[%clk 0:12:56]} 5. d4 {[%clk 0:12:35]}  c4 {[%clk 0:12:39]} 6. b3 {[%clk 0:12:11]}  cxb3 {[%clk 0:12:39]} 7. axb3 {[%clk 0:12:11]}  Nc6 {[%clk 0:12:39]} 8. Bd3 {[%clk 0:12:26]}  Nf6 {[%clk 0:11:23]} 9. O-O {[%clk 0:12:26]}  Be7 {[%clk 0:11:04]} 10. h3 {[%clk 0:12:15]}  O-O {[%clk 0:11:04]} 11. Re1 {[%clk 0:12:23]}  h6 {[%clk 0:09:20]} 12. b4 {[%clk 0:11:26]}  Be6 {[%clk 0:08:50]} 13. Nbd2 {[%clk 0:11:00]}  Ne8 {[%clk 0:07:55]} 14. Nb3 {[%clk 0:11:07]}  b6 {[%clk 0:06:43]} 15. Ne5 {[%clk 0:08:53]}  Qc8 {[%clk 0:06:26]} 16. Ba6 {[%clk 0:06:45]}  Qc7 {[%clk 0:05:21]} 17. Ng6 {[%clk 0:05:01]}  fxg6 {[%clk 0:04:13]} 18. Rxe6 {[%clk 0:05:04]}  Rf6 {[%clk 0:04:13]} 19. Qe1 {[%clk 0:05:04]}  Qd7 {[%clk 0:03:00]} 20. Re2 {[%clk 0:04:59]}  Nd6 {[%clk 0:03:00]} 21. b5 {[%clk 0:04:59]}  Ne4 {[%clk 0:02:28]} 22. bxc6 {[%clk 0:04:52]}  Qxc6 {[%clk 0:00:59]} 23. Bd3 {[%clk 0:04:52]} 1-0


[Site "http://www.Chess.com"]

[Event "FIDE World Rapid Chess Championship 2021"]
[White "Smirin, Ilia"]
[Black "Krasenkow, Michal"]
[WhiteFideId "2801990"]
[BlackFideId "1113100"]
[WhiteElo "2663"]
[BlackElo "2430"]
[Result "1/2-1/2"]
[Round "06"]
[TimeControl "900+10"]
[Date "2021.12.27"]
[WhiteClock "0:02:11"]
[BlackClock "0:01:09"]

1. e4 {[%clk 0:15:00]}  e5 {[%clk 0:15:00]} 2. Nf3 {[%clk 0:15:00]}  Nf6 {[%clk 0:15:00]} 3. d4 {[%clk 0:15:23]}  exd4 {[%clk 0:15:28]} 4. e5 {[%clk 0:15:23]}  Ne4 {[%clk 0:15:28]} 5. Qxd4 {[%clk 0:15:23]}  d5 {[%clk 0:15:28]} 6. exd6 {[%clk 0:15:23]}  Nxd6 {[%clk 0:15:28]} 7. Bd3 {[%clk 0:15:23]}  Nc6 {[%clk 0:15:28]} 8. Qf4 {[%clk 0:15:23]}  g6 {[%clk 0:15:28]} 9. O-O {[%clk 0:15:22]}  Bg7 {[%clk 0:15:55]} 10. Re1+ {[%clk 0:14:26]}  Be6 {[%clk 0:15:48]} 11. Ng5 {[%clk 0:14:26]}  O-O {[%clk 0:14:41]} 12. Nxe6 {[%clk 0:14:20]}  fxe6 {[%clk 0:13:20]} 13. Qg4 {[%clk 0:14:20]}  Bd4 {[%clk 0:13:20]} 14. Qxe6+ {[%clk 0:13:02]}  Kh8 {[%clk 0:12:21]} 15. Re2 {[%clk 0:13:02]}  Qh4 {[%clk 0:13:40]} 16. g3 {[%clk 0:10:39]}  Qh5 {[%clk 0:12:47]} 17. Nc3 {[%clk 0:10:25]}  Rae8 {[%clk 0:10:27]} 18. Qd5 {[%clk 0:04:11]}  Qxd5 {[%clk 0:08:25]} 19. Nxd5 {[%clk 0:03:23]}  Rxe2 {[%clk 0:08:25]} 20. Bxe2 {[%clk 0:03:23]}  Rxf2 {[%clk 0:08:25]} 21. Bd3 {[%clk 0:03:23]}  Rxc2+ {[%clk 0:04:40]} 22. Kh1 {[%clk 0:03:37]}  Rf2 {[%clk 0:04:40]} 23. Bf4 {[%clk 0:03:35]}  Rxb2 {[%clk 0:02:35]} 24. Re1 {[%clk 0:03:23]}  Rxa2 {[%clk 0:01:47]} 25. Nxc7 {[%clk 0:02:56]}  Nf5 {[%clk 0:01:47]} 26. Re8+ {[%clk 0:02:56]}  Kg7 {[%clk 0:01:47]} 27. Bc4 {[%clk 0:02:56]}  Ra1+ {[%clk 0:01:13]} 28. Kg2 {[%clk 0:02:45]}  h6 {[%clk 0:01:13]} 29. Ne6+ {[%clk 0:02:11]}  Kf7 {[%clk 0:01:09]} 30. Nc7+ {[%clk 0:02:11]}  Kg7 {[%clk 0:01:09]} 31. Ne6+ {[%clk 0:02:11]}  Kf7 {[%clk 0:01:09]} 1/2-1/2


[Site "http://www.Chess.com"]

[Event "FIDE World Rapid Chess Championship 2021"]
[White "Dvirnyy, Danyyil"]
[Black "Peng, Li Min"]
[WhiteFideId "817570"]
[BlackFideId "14112620"]
[WhiteElo "2550"]
[BlackElo "2411"]
[Result "1-0"]
[Round "06"]
[TimeControl "900+10"]
[Date "2021.12.27"]
[WhiteClock "0:00:51"]
[BlackClock "0:01:34"]

1. e4 {[%clk 0:15:00]}  g6 {[%clk 0:15:00]} 2. d4 {[%clk 0:15:17]}  Bg7 {[%clk 0:15:00]} 3. Nc3 {[%clk 0:15:17]}  d6 {[%clk 0:15:00]} 4. Be3 {[%clk 0:15:00]}  a6 {[%clk 0:15:00]} 5. Qd2 {[%clk 0:15:00]}  b5 {[%clk 0:15:11]} 6. O-O-O {[%clk 0:13:30]}  Bb7 {[%clk 0:15:11]} 7. f3 {[%clk 0:13:30]}  Nd7 {[%clk 0:15:11]} 8. h4 {[%clk 0:13:30]}  h6 {[%clk 0:15:11]} 9. Nh3 {[%clk 0:13:40]}  c5 {[%clk 0:15:35]} 10. dxc5 {[%clk 0:13:40]}  dxc5 {[%clk 0:15:35]} 11. Nf4 {[%clk 0:12:38]}  Qc7 {[%clk 0:15:49]} 12. Nfd5 {[%clk 0:11:08]}  Qc6 {[%clk 0:15:37]} 13. Nxb5 {[%clk 0:10:38]}  axb5 {[%clk 0:15:45]} 14. Bxb5 {[%clk 0:10:38]}  Rxa2 {[%clk 0:15:45]} 15. c3 {[%clk 0:10:38]}  Qd6 {[%clk 0:15:59]} 16. Bf4 {[%clk 0:09:02]}  Be5 {[%clk 0:08:12]} 17. Bxe5 {[%clk 0:08:56]}  Qxe5 {[%clk 0:08:21]} 18. Nb6 {[%clk 0:07:29]}  Ba6 {[%clk 0:08:30]} 19. Qxd7+ {[%clk 0:06:12]}  Kf8 {[%clk 0:01:02]} 20. Bxa6 {[%clk 0:06:12]}  Nf6 {[%clk 0:00:50]} 21. Qb5 {[%clk 0:04:07]}  Kg7 {[%clk 0:00:50]} 22. Kb1 {[%clk 0:03:54]}  Qe6 {[%clk 0:00:00]} 23. Na4 {[%clk 0:03:54]}  Rxa4 {[%clk 0:00:00]} 24. Qxa4 {[%clk 0:03:54]}  Ra8 {[%clk 0:00:00]} 25. Bc4 {[%clk 0:03:37]}  Rxa4 {[%clk 0:00:32]} 26. Bxe6 {[%clk 0:03:37]}  fxe6 {[%clk 0:00:32]} 27. Kc2 {[%clk 0:03:37]}  Ra7 {[%clk 0:00:32]} 28. Ra1 {[%clk 0:03:37]}  Rc7 {[%clk 0:00:32]} 29. Rhd1 {[%clk 0:03:37]}  g5 {[%clk 0:00:32]} 30. hxg5 {[%clk 0:03:37]}  hxg5 {[%clk 0:00:32]} 31. c4 {[%clk 0:03:29]}  Nd7 {[%clk 0:00:53]} 32. Kc3 {[%clk 0:03:29]}  Kf6 {[%clk 0:00:53]} 33. g3 {[%clk 0:02:26]}  Ne5 {[%clk 0:01:02]} 34. f4 {[%clk 0:02:26]}  Nc6 {[%clk 0:01:02]} 35. Ra8 {[%clk 0:02:26]}  Rb7 {[%clk 0:01:02]} 36. Rc8 {[%clk 0:01:48]}  Rb6 {[%clk 0:01:08]} 37. Rd2 {[%clk 0:01:48]}  g4 {[%clk 0:01:08]} 38. Rh2 {[%clk 0:00:58]}  Kg7 {[%clk 0:01:04]} 39. Rxc6 {[%clk 0:00:58]}  Rxc6 {[%clk 0:01:04]} 40. Rh4 {[%clk 0:00:58]}  e5 {[%clk 0:00:14]} 41. Rxg4+ {[%clk 0:01:10]}  Kf7 {[%clk 0:00:14]} 42. Rg5 {[%clk 0:01:10]}  exf4 {[%clk 0:00:10]} 43. gxf4 {[%clk 0:00:29]}  e6 {[%clk 0:00:10]} 44. b3 {[%clk 0:00:29]}  Ke7 {[%clk 0:00:10]} 45. Rg7+ {[%clk 0:00:29]}  Kf6 {[%clk 0:00:10]} 46. Rg5 {[%clk 0:00:29]}  Rc8 {[%clk 0:00:10]} 47. Rh5 {[%clk 0:00:29]}  Ke7 {[%clk 0:00:10]} 48. e5 {[%clk 0:00:40]}  Rg8 {[%clk 0:01:12]} 49. Rh7+ {[%clk 0:00:40]}  Kd8 {[%clk 0:01:12]} 50. Rf7 {[%clk 0:00:40]}  Rg3+ {[%clk 0:01:12]} 51. Kb2 {[%clk 0:00:40]}  Rf3 {[%clk 0:01:12]} 52. Ka3 {[%clk 0:00:40]}  Kc8 {[%clk 0:01:12]} 53. Ka4 {[%clk 0:00:40]}  Kd8 {[%clk 0:01:12]} 54. Ra7 {[%clk 0:00:40]}  Rxf4 {[%clk 0:01:12]} 55. Ra5 {[%clk 0:00:40]}  Kc7 {[%clk 0:01:12]} 56. Rxc5+ {[%clk 0:00:40]}  Kb6 {[%clk 0:01:34]} 57. Rb5+ {[%clk 0:00:51]} 1-0


[Site "http://www.Chess.com"]

[Event "FIDE World Rapid Chess Championship 2021"]
[White "Gagunashvili, Merab"]
[Black "Cuenca Jimenez, Jose Fernando"]
[WhiteFideId "13601652"]
[BlackFideId "2255570"]
[WhiteElo "2538"]
[BlackElo "2421"]
[Result "1/2-1/2"]
[Round "06"]
[TimeControl "900+10"]
[Date "2021.12.27"]
[WhiteClock "0:04:04"]
[BlackClock "0:01:16"]

1. e4 {[%clk 0:15:00]}  e5 {[%clk 0:15:00]} 2. Nf3 {[%clk 0:15:00]}  Nc6 {[%clk 0:15:22]} 3. Bc4 {[%clk 0:15:36]}  Nf6 {[%clk 0:15:22]} 4. d3 {[%clk 0:15:36]}  h6 {[%clk 0:15:22]} 5. O-O {[%clk 0:15:36]}  d6 {[%clk 0:15:22]} 6. c3 {[%clk 0:15:36]}  g5 {[%clk 0:15:22]} 7. Re1 {[%clk 0:15:53]}  g4 {[%clk 0:15:07]} 8. Nfd2 {[%clk 0:15:53]}  h5 {[%clk 0:15:07]} 9. Nf1 {[%clk 0:15:06]}  h4 {[%clk 0:14:53]} 10. Bg5 {[%clk 0:14:50]}  Rh5 {[%clk 0:15:01]} 11. Bxf6 {[%clk 0:12:40]}  Qxf6 {[%clk 0:15:01]} 12. Na3 {[%clk 0:12:40]}  Bd7 {[%clk 0:13:53]} 13. Ne3 {[%clk 0:12:38]}  Qg6 {[%clk 0:13:05]} 14. d4 {[%clk 0:11:54]}  O-O-O {[%clk 0:11:34]} 15. Bb5 {[%clk 0:09:23]}  g3 {[%clk 0:09:18]} 16. d5 {[%clk 0:06:25]}  gxf2+ {[%clk 0:08:06]} 17. Kxf2 {[%clk 0:06:25]}  Ne7 {[%clk 0:07:23]} 18. Bxd7+ {[%clk 0:05:46]}  Rxd7 {[%clk 0:07:23]} 19. Qg4 {[%clk 0:03:51]}  Rg5 {[%clk 0:07:32]} 20. Qf3 {[%clk 0:02:45]}  f5 {[%clk 0:03:15]} 21. exf5 {[%clk 0:02:45]}  Nxf5 {[%clk 0:03:15]} 22. Qh3 {[%clk 0:02:45]}  Kb8 {[%clk 0:03:05]} 23. Kg1 {[%clk 0:01:44]}  Nxe3 {[%clk 0:02:10]} 24. Rxe3 {[%clk 0:01:08]}  Rg7 {[%clk 0:02:10]} 25. Re2 {[%clk 0:01:08]}  Be7 {[%clk 0:02:10]} 26. Rf1 {[%clk 0:01:08]}  a6 {[%clk 0:02:10]} 27. Nb1 {[%clk 0:01:16]}  Rg4 {[%clk 0:01:18]} 28. Nd2 {[%clk 0:01:16]}  Qc2 {[%clk 0:01:20]} 29. Qf3 {[%clk 0:00:19]}  Qxb2 {[%clk 0:00:18]} 30. Ne4 {[%clk 0:00:15]}  Qb5 {[%clk 0:00:18]} 31. Rd2 {[%clk 0:00:15]}  Rf4 {[%clk 0:00:18]} 32. Qe2 {[%clk 0:00:15]}  Rxf1+ {[%clk 0:00:18]} 33. Qxf1 {[%clk 0:00:15]}  Qxf1+ {[%clk 0:00:21]} 34. Kxf1 {[%clk 0:00:37]}  Rg4 {[%clk 0:00:21]} 35. Re2 {[%clk 0:00:37]}  b5 {[%clk 0:00:21]} 36. g3 {[%clk 0:00:37]}  hxg3 {[%clk 0:00:21]} 37. hxg3 {[%clk 0:00:37]}  Kb7 {[%clk 0:00:21]} 38. Kf2 {[%clk 0:00:37]}  c6 {[%clk 0:00:21]} 39. Kf3 {[%clk 0:00:37]}  Rg7 {[%clk 0:00:21]} 40. dxc6+ {[%clk 0:00:37]}  Kxc6 {[%clk 0:00:21]} 41. g4 {[%clk 0:00:37]}  d5 {[%clk 0:00:21]} 42. Nf2 {[%clk 0:00:37]}  Bf6 {[%clk 0:00:38]} 43. Nd1 {[%clk 0:01:17]}  Rh7 {[%clk 0:00:38]} 44. Kg3 {[%clk 0:01:17]}  Kd6 {[%clk 0:00:38]} 45. Ne3 {[%clk 0:01:17]}  Rc7 {[%clk 0:00:38]} 46. Nd1 {[%clk 0:01:16]}  Bg5 {[%clk 0:00:35]} 47. Rf2 {[%clk 0:01:16]}  Bf4+ {[%clk 0:00:35]} 48. Kf3 {[%clk 0:01:16]}  Rh7 {[%clk 0:00:35]} 49. Rg2 {[%clk 0:01:16]}  Rh3+ {[%clk 0:00:35]} 50. Ke2 {[%clk 0:01:16]}  Bg5 {[%clk 0:00:35]} 51. Rf2 {[%clk 0:01:16]}  Rg3 {[%clk 0:00:53]} 52. Rf8 {[%clk 0:01:36]}  Rxg4 {[%clk 0:00:53]} 53. Rg8 {[%clk 0:01:36]}  Re4+ {[%clk 0:00:53]} 54. Kd3 {[%clk 0:01:36]}  Bf6 {[%clk 0:00:53]} 55. Ne3 {[%clk 0:01:36]}  Ra4 {[%clk 0:00:23]} 56. Rg6 {[%clk 0:01:38]}  Rf4 {[%clk 0:00:23]} 57. Rg8 {[%clk 0:01:38]}  e4+ {[%clk 0:00:23]} 58. Kd2 {[%clk 0:01:38]}  Rf2+ {[%clk 0:00:23]} 59. Ke1 {[%clk 0:01:38]}  Rf3 {[%clk 0:00:23]} 60. Ke2 {[%clk 0:01:38]}  Bxc3 {[%clk 0:00:23]} 61. Rd8+ {[%clk 0:01:38]}  Ke6 {[%clk 0:00:25]} 62. Nxd5 {[%clk 0:02:13]}  Be5 {[%clk 0:00:25]} 63. Ne3 {[%clk 0:02:13]}  Bf4 {[%clk 0:00:25]} 64. Re8+ {[%clk 0:02:13]}  Kd7 {[%clk 0:00:25]} 65. Rxe4 {[%clk 0:02:13]}  Rxe3+ {[%clk 0:00:25]} 66. Rxe3 {[%clk 0:02:13]}  Bxe3 {[%clk 0:00:25]} 67. Kxe3 {[%clk 0:02:13]}  Kc6 {[%clk 0:00:25]} 68. Kd4 {[%clk 0:02:13]}  a5 {[%clk 0:00:25]} 69. Kc3 {[%clk 0:02:13]}  Kd5 {[%clk 0:00:44]} 70. Kd3 {[%clk 0:02:41]}  Kc5 {[%clk 0:00:44]} 71. Kc3 {[%clk 0:02:41]}  b4+ {[%clk 0:00:44]} 72. Kb3 {[%clk 0:02:41]}  Kb5 {[%clk 0:00:44]} 73. a3 {[%clk 0:02:41]}  a4+ {[%clk 0:00:44]} 74. Kb2 {[%clk 0:02:41]}  b3 {[%clk 0:00:44]} 75. Kc3 {[%clk 0:02:41]}  Kc5 {[%clk 0:00:44]} 76. Kb2 {[%clk 0:02:41]}  Kc4 {[%clk 0:00:44]} 77. Kb1 {[%clk 0:02:41]}  Kd3 {[%clk 0:00:44]} 78. Kb2 {[%clk 0:02:41]}  Kd2 {[%clk 0:00:44]} 79. Kb1 {[%clk 0:02:41]}  Kc3 {[%clk 0:00:44]} 80. Kc1 {[%clk 0:02:41]}  b2+ {[%clk 0:01:16]} 81. Kb1 {[%clk 0:04:04]}  Kb3 {[%clk 0:01:16]} 1/2-1/2


[Site "http://www.Chess.com"]

[Event "FIDE World Rapid Chess Championship 2021"]
[White "Klekowski, Maciej"]
[Black "Blohberger, Felix"]
[WhiteFideId "1132717"]
[BlackFideId "1632051"]
[WhiteElo "2528"]
[BlackElo "2409"]
[Result "1/2-1/2"]
[Round "06"]
[TimeControl "900+10"]
[Date "2021.12.27"]
[WhiteClock "0:00:33"]
[BlackClock "0:00:39"]

1. c4 {[%clk 0:15:00]}  b6 {[%clk 0:15:00]} 2. Nf3 {[%clk 0:15:00]}  Bb7 {[%clk 0:15:00]} 3. d4 {[%clk 0:15:00]}  e6 {[%clk 0:15:26]} 4. a3 {[%clk 0:14:36]}  Nf6 {[%clk 0:15:26]} 5. Nc3 {[%clk 0:14:36]}  d5 {[%clk 0:15:26]} 6. cxd5 {[%clk 0:14:36]}  Nxd5 {[%clk 0:15:26]} 7. e3 {[%clk 0:14:36]}  Be7 {[%clk 0:15:26]} 8. Bb5+ {[%clk 0:14:36]}  c6 {[%clk 0:15:26]} 9. Bd3 {[%clk 0:14:36]}  O-O {[%clk 0:15:16]} 10. e4 {[%clk 0:15:01]}  Nxc3 {[%clk 0:15:16]} 11. bxc3 {[%clk 0:15:01]}  c5 {[%clk 0:15:16]} 12. O-O {[%clk 0:15:15]}  Bf6 {[%clk 0:15:31]} 13. Be3 {[%clk 0:13:55]}  cxd4 {[%clk 0:14:12]} 14. cxd4 {[%clk 0:13:55]}  Nc6 {[%clk 0:14:12]} 15. Bb1 {[%clk 0:12:47]}  g6 {[%clk 0:14:26]} 16. Ra2 {[%clk 0:08:15]}  Qd7 {[%clk 0:11:16]} 17. Qe2 {[%clk 0:08:20]}  Rac8 {[%clk 0:10:39]} 18. Rd1 {[%clk 0:04:39]}  Rfd8 {[%clk 0:06:12]} 19. h4 {[%clk 0:04:44]}  Na5 {[%clk 0:06:12]} 20. Bg5 {[%clk 0:04:47]}  Qe7 {[%clk 0:05:25]} 21. Qe3 {[%clk 0:04:43]}  Nc4 {[%clk 0:04:48]} 22. Qb3 {[%clk 0:04:14]}  Bxg5 {[%clk 0:04:03]} 23. hxg5 {[%clk 0:04:14]}  Rc7 {[%clk 0:03:10]} 24. Rc2 {[%clk 0:03:24]}  Rdc8 {[%clk 0:03:10]} 25. Rdc1 {[%clk 0:01:26]}  Na5 {[%clk 0:03:10]} 26. Qd3 {[%clk 0:01:38]}  Rxc2 {[%clk 0:01:14]} 27. Rxc2 {[%clk 0:01:38]}  Rxc2 {[%clk 0:01:14]} 28. Bxc2 {[%clk 0:01:38]}  Qd6 {[%clk 0:00:29]} 29. g3 {[%clk 0:01:56]}  a6 {[%clk 0:00:29]} 30. Qc3 {[%clk 0:01:56]}  Nc6 {[%clk 0:00:29]} 31. Bd3 {[%clk 0:01:56]}  b5 {[%clk 0:00:29]} 32. Be2 {[%clk 0:00:15]}  Ne7 {[%clk 0:00:30]} 33. Bd3 {[%clk 0:00:15]}  Nc6 {[%clk 0:00:30]} 34. Bc2 {[%clk 0:00:15]}  a5 {[%clk 0:00:30]} 35. Qd3 {[%clk 0:00:15]}  b4 {[%clk 0:00:30]} 36. a4 {[%clk 0:00:33]}  Ne7 {[%clk 0:00:39]} 37. Qb5 {[%clk 0:00:33]}  Qc6 {[%clk 0:00:39]} 38. Qxa5 {[%clk 0:00:33]}  Qxc2 {[%clk 0:00:39]} 39. Qd8+ {[%clk 0:00:33]}  Kg7 {[%clk 0:00:39]} 40. Qxe7 {[%clk 0:00:33]}  Qxe4 {[%clk 0:00:39]} 1/2-1/2


[Site "http://www.Chess.com"]